bitfinex/quotes_ETHUSD_20260125
["timestamp","ask_amount","ask_price","bid_price","bid_amount"]
[1769342224361,2.88029244,2938.1,2937.1,0.03404718]
[1769342224583,2.88029244,2938.1,2936.8,0.24326006]
[1769342224584,2.88029244,2938.1,2936.8,0.03604949]
[1769342224795,2.635177,2937.9,2936.9,1.56423549]
[1769342224992,2.635177,2937.9,2937.0,0.8511942]
[1769342226466,2.635177,2937.9,2936.9,4.21338917]
[1769342227296,2.635177,2937.9,2936.9,0.713]
[1769342228674,2.635177,2937.9,2936.9,1.56423599]
[1769342228970,2.635177,2937.7,2936.9,1.56423599]
[1769342229913,2.635177,2937.7,2937.1,0.002]
[1769342230087,2.636177,2937.7,2937.1,0.002]
[1769342251133,2.636177,2937.7,2936.9,0.002]
[1769342254433,2.636177,2937.7,2937.1,0.002]
[1769342254603,2.65297345,2937.5,2937.1,0.002]
[1769342254803,2.65397345,2937.5,2937.1,0.002]
[1769342257641,0.001,2937.5,2937.1,0.002]
[1769342263740,2.65397345,2937.5,2937.1,0.002]
[1769342267537,0.001,2937.3,2937.1,0.002]
[1769342275360,0.001,2937.7,2937.1,0.002]
[1769342275663,0.001,2937.7,2937.1,0.25761575]
[1769342276238,0.001,2937.7,2937.1,2.80977327]
[1769342279072,0.001,2937.5,2937.1,2.80977327]
[1769342281575,0.001,2937.5,2937.1,0.25761575]
[1769342281742,0.001,2937.5,2937.1,0.002]
[1769342287676,0.714,2938.3,2937.4,2.73961426]
[1769342287677,2.74974558,2938.3,2937.4,2.73961426]
[1769342293877,2.74974558,2938.3,2937.3,0.002]
[1769342300081,0.001,2938.4,2937.4,3.21647563]
[1769342300282,2.7715436,2938.4,2937.5,3.0464017]
[1769342300484,2.7715436,2938.4,2937.5,0.32184756]
[1769342300685,2.7715436,2938.4,2937.3,0.002]
[1769342301058,2.7715436,2938.4,2937.3,2.72655414]
[1769342303504,2.7715436,2938.4,2937.3,3.57766698]
[1769342306068,2.7715436,2938.4,2937.4,2.72455414]
[1769342313297,2.7715436,2938.4,2937.3,0.02902378]
[1769342313489,3.04180653,2938.3,2937.3,0.002]
[1769342313693,3.04180653,2938.3,2937.5,0.002]
[1769342314305,2.76465217,2938.2,2937.3,0.002]
[1769342314598,2.84626817,2938.2,2937.3,0.002]
[1769342314770,2.76465217,2938.0,2937.3,0.002]
[1769342316407,2.76465217,2937.8,2937.1,0.002]
[1769342319288,2.76465217,2937.6,2937.1,0.002]
[1769342321387,2.84626817,2937.9,2937.1,0.002]
[1769342321583,2.76465217,2937.9,2937.1,0.002]
[1769342322098,2.76465217,2938.2,2937.1,2.91125614]
[1769342322299,2.76465217,2938.2,2937.3,2.87520896]
[1769342324721,3.04180653,2938.3,2937.3,2.87520896]
[1769342325523,3.04180653,2938.3,2937.3,2.87720896]
[1769342325828,0.001,2937.6,2937.3,2.87720896]
[1769342330896,0.001,2937.6,2937.3,0.002]
[1769342331093,0.001,2937.6,2937.3,0.31905346]
[1769342331498,0.001,2937.6,2937.3,0.002]
[1769342337040,2.76565217,2937.6,2937.3,0.002]
[1769342337341,0.001,2937.4,2937.3,0.002]
[1769342382384,2.88187096,2938.4,2937.3,2.81133925]
[1769342382689,2.88187096,2938.4,2937.4,2.84338296]
[1769342382884,2.88187096,2938.4,2937.5,0.2845383]
[1769342384581,2.88187096,2938.4,2937.5,3.09387755]
[1769342389507,2.88187096,2938.4,2937.5,0.2845383]
[1769342389671,2.88187096,2938.4,2937.3,2.84538412]
[1769342389870,2.88187096,2938.4,2937.3,3.69650455]
[1769342390780,2.88187096,2938.4,2937.3,2.84538412]
[1769342392009,2.88187096,2938.4,2937.3,3.69650104]
[1769342392702,2.88187096,2938.4,2937.3,2.84538412]
[1769342392903,2.88187096,2938.4,2937.4,0.28453841]
[1769342394909,2.88187096,2938.4,2937.5,0.002]
[1769342395075,0.001,2938.2,2937.5,0.002]
[1769342395584,2.88287096,2938.2,2937.5,0.002]
[1769342400294,2.88287096,2938.2,2937.3,0.002]
[1769342400523,2.88187096,2938.0,2937.3,0.002]
[1769342402635,2.88187096,2937.8,2937.3,0.002]
[1769342402929,2.88187096,2937.8,2937.1,0.002]
[1769342405111,2.68956208,2937.7,2936.9,0.002]
[1769342405302,2.68956208,2937.5,2936.5,0.002]
[1769342405815,2.68956208,2937.3,2936.5,0.002]
[1769342406231,2.68956208,2937.3,2935.9,0.002]
[1769342406818,0.85114091,2937.3,2937.0,0.002]
[1769342407016,2.68956208,2937.2,2935.9,0.002]
[1769342407222,2.68956208,2937.0,2935.9,0.002]
[1769342408955,2.68956208,2937.0,2936.0,2.69853158]
[1769342409254,3.04363238,2937.1,2936.0,2.69853158]
[1769342409439,2.68956208,2937.0,2936.0,2.69853158]
[1769342411618,2.68956208,2937.0,2935.9,0.002]
[1769342414852,0.713,2937.1,2935.9,2.64872918]
[1769342415027,2.58644508,2937.9,2936.1,2.61266808]
[1769342415229,2.58644508,2937.7,2936.3,2.61266808]
[1769342415539,2.58644508,2937.7,2936.5,2.61266808]
[1769342415739,2.58644508,2937.7,2936.7,2.61266808]
[1769342416450,2.58644508,2937.7,2936.7,2.60926406]
[1769342416619,2.58644508,2937.7,2936.8,0.2643317]
[1769342417542,2.58644508,2937.7,2936.8,1.11558881]
[1769342417922,2.58644508,2937.7,2936.8,1.11559659]
[1769342418634,2.58644508,2937.7,2936.8,0.2643317]
[1769342423726,2.58644508,2937.7,2936.9,2.61266808]
[1769342423946,2.58644508,2937.7,2937.0,0.37282645]
[1769342426377,2.58644508,2937.7,2936.8,0.2643317]
[1769342426574,2.58644508,2937.7,2936.8,2.87699978]
[1769342428779,0.713,2937.8,2936.9,2.64671758]
[1769342429376,3.29944508,2937.8,2936.9,2.64671758]
[1769342430256,2.58644508,2937.8,2936.9,2.64671758]
[1769342430577,0.001,2937.5,2937.0,3.84010568]
[1769342431188,0.001,2937.5,2937.0,2.98889868]
[1769342432046,0.001,2937.5,2937.0,3.84009902]
[1769342432678,0.001,2937.5,2937.0,1.22743094]
[1769342434185,0.001,2937.5,2937.0,0.3762306]
[1769342434849,0.001,2937.5,2937.0,1.22743804]
[1769342435287,0.001,2937.5,2937.0,0.3762306]
[1769342435880,0.001,2937.5,2937.0,3.57992024]
[1769342436383,0.001,2937.5,2937.1,2.76276282]
[1769342436782,0.001,2938.2,2937.3,2.72989617]
[1769342436956,2.73723476,2938.2,2937.4,0.03404371]
[1769342437162,2.73723476,2938.2,2937.3,0.03404487]
[1769342437357,2.73723476,2938.2,2937.4,0.36150918]
[1769342438657,2.73723476,2938.2,2937.4,3.09356003]
[1769342438861,2.73723476,2938.2,2937.4,3.12760374]
[1769342439989,0.001,2938.2,2937.4,3.97869282]
[1769342440668,0.001,2938.2,2937.4,3.12760374]
[1769342440870,0.001,2938.2,2937.5,0.39787041]
[1769342441556,0.001,2938.2,2937.5,3.13614838]
[1769342441757,0.001,2938.2,2937.6,2.77231936]
[1769342442604,0.001,2938.0,2937.6,0.03404139]
[1769342445094,0.001,2938.0,2937.5,0.43191296]
[1769342446502,0.001,2938.0,2937.6,0.4392864]
[1769342449890,0.001,2938.0,2937.6,3.19529341]
[1769342451296,0.001,2938.2,2937.7,0.03404023]
[1769342452889,0.001,2938.2,2937.6,3.2293348]
[1769342454871,0.001,2938.2,2937.9,0.002]
[1769342455074,0.001,2938.0,2937.9,0.002]
[1769342460490,2.73723476,2938.0,2937.6,0.002]
[1769342462281,0.001,2938.0,2937.6,0.002]
[1769342462605,2.73623476,2938.8,2937.7,2.77650082]
[1769342462772,2.73623476,2939.1,2937.8,3.09179411]
[1769342463740,2.73623476,2939.1,2938.0,2.77965103]
[1769342463904,2.73623476,2939.1,2937.8,0.28125422]
[1769342464278,2.73623476,2939.1,2937.6,1.05749706]
[1769342464605,2.73623476,2939.1,2937.7,0.85100588]
[1769342466116,2.73623476,2939.1,2937.8,2.81830396]
[1769342466821,2.73623476,2939.1,2937.9,0.85094795]
[1769342467024,2.73623476,2939.1,2938.0,0.03403675]
[1769342467844,2.79494725,2938.8,2937.9,3.67426145]
[1769342468006,2.79494725,2938.8,2938.0,0.36742615]
[1769342469528,2.79494725,2938.8,2937.9,0.03603689]
[1769342469823,2.79494725,2938.8,2937.9,0.002]
[1769342479125,2.79494725,2938.8,2938.1,0.002]
[1769342480446,0.001,2938.9,2938.1,2.80729275]
[1769342481548,2.90596897,2938.9,2938.1,2.80729275]
[1769342481717,2.90596897,2938.9,2938.1,3.17671885]
[1769342483847,2.90596897,2938.9,2938.1,3.21075445]
[1769342484254,2.90596897,2938.9,2938.1,0.4054617]
[1769342484549,2.90596897,2938.9,2938.1,0.3714261]
[1769342488540,2.90596897,2938.9,2938.1,2.81709524]
[1769342490254,2.90596897,2938.9,2938.1,0.002]
[1769342490429,2.90596897,2938.9,2937.3,0.03404487]
[1769342490430,2.90496897,2938.8,2937.3,0.03404487]
[1769342490631,2.98658497,2938.7,2937.1,0.85116534]
[1769342490952,2.98658497,2938.7,2936.9,6.22433618]
[1769342490953,2.90496897,2938.5,2937.0,0.88525459]
[1769342491355,2.98658497,2938.5,2937.0,0.03404834]
[1769342491558,2.98658497,2938.3,2936.7,0.002]
[1769342491729,2.90496897,2938.1,2936.8,0.85126119]
[1769342493553,2.90496897,2938.1,2936.9,0.0340495]
[1769342493858,3.26676587,2938.1,2936.9,0.32025267]
[1769342495151,3.26676587,2938.1,2936.9,0.28620317]
[1769342495352,3.26676587,2938.1,2936.7,0.002]
[1769342495552,3.26676587,2938.1,2936.7,0.85329567]
[1769342495755,3.26676587,2938.1,2936.7,0.002]
[1769342497061,3.34838187,2938.1,2936.7,0.002]
[1769342497359,2.8986356,2938.0,2936.7,0.002]
[1769342497650,1.29430409,2938.1,2936.7,0.002]
[1769342497651,2.8986356,2937.8,2936.7,0.002]
[1769342499832,2.8986356,2937.7,2936.7,0.002]
[1769342502841,2.8986356,2937.7,2936.9,0.002]
[1769342503065,2.8986356,2937.5,2936.9,0.002]
[1769342508382,3.6116356,2937.5,2936.7,0.002]
[1769342508535,2.8986356,2937.3,2936.7,0.002]
[1769342509342,3.6116356,2937.5,2936.7,0.002]
[1769342510273,0.713,2937.5,2936.7,2.84728472]
[1769342511276,0.713,2937.5,2936.7,2.88133654]
[1769342511471,0.713,2937.5,2936.8,3.21961189]
[1769342511662,0.001,2937.6,2936.8,3.21961189]
[1769342512241,2.8996356,2937.6,2936.7,0.002]
[1769342512654,3.6116356,2937.5,2936.6,0.002]
[1769342513254,2.8986356,2937.4,2936.6,0.002]
[1769342515982,2.8996356,2937.4,2936.6,0.002]
[1769342516566,2.9812516,2937.4,2936.6,0.002]
[1769342516771,2.8986356,2937.2,2936.6,0.002]
[1769342525293,2.90812927,2937.1,2936.5,0.002]
[1769342525596,2.90812927,2937.1,2936.3,0.002]
[1769342525997,2.90812927,2936.9,2936.3,0.002]
[1769342526176,2.90812927,2936.7,2936.0,0.002]
[1769342527901,2.90812927,2936.6,2936.0,0.002]
[1769342528108,2.90812927,2936.4,2936.0,0.002]
[1769342528410,2.90812927,2936.4,2935.7,0.002]
[1769342529176,2.90812927,2936.4,2935.5,0.002]
[1769342530171,2.90812927,2936.2,2935.5,0.002]
[1769342530500,2.90812927,2936.0,2935.5,0.002]
[1769342538392,2.90812927,2936.0,2935.7,0.002]
[1769342547030,0.713,2936.1,2935.7,0.002]
[1769342547830,2.73137448,2936.0,2935.7,0.002]
[1769342548135,0.713,2936.1,2935.7,0.002]
[1769342548832,0.34443745,2936.0,2935.7,0.002]
[1769342549538,0.34443745,2936.0,2934.3,2.68969688]
[1769342549539,2.73137448,2935.5,2934.3,2.68969688]
[1769342549706,1.27756241,2936.0,2934.5,2.68969688]
[1769342549707,3.44537448,2935.4,2934.5,2.68969688]
[1769342549906,0.34453745,2935.3,2934.5,2.68969688]
[1769342550152,3.44537448,2935.4,2934.5,2.68969688]
[1769342550673,0.714,2935.4,2934.5,2.68969688]
[1769342550971,2.73137448,2935.7,2934.5,2.68969688]
[1769342553925,2.73137448,2935.7,2934.5,0.002]
[1769342555156,2.73137448,2935.7,2934.5,2.82986039]
[1769342555455,2.77635772,2935.5,2934.6,0.40225846]
[1769342555756,0.001,2935.8,2934.7,2.82786039]
[1769342556365,0.001,2935.8,2934.9,2.82786039]
[1769342556554,0.001,2935.8,2935.0,0.03407155]
[1769342556962,0.001,2935.8,2935.0,2.82786039]
[1769342557163,0.001,2935.8,2935.1,3.11064643]
[1769342559432,2.77735772,2935.8,2935.1,0.28278604]
[1769342560343,2.77735772,2935.8,2935.1,3.11064643]
[1769342560344,0.001,2935.8,2935.1,3.11064643]
[1769342563163,0.001,2935.6,2935.1,3.11064643]
[1769342563336,0.001,2935.6,2935.2,0.31106464]
[1769342563936,2.77635772,2936.0,2935.2,0.31106464]
[1769342563937,0.714,2936.1,2935.4,2.82786039]
[1769342564673,2.77635772,2936.0,2935.2,0.31106464]
[1769342564861,2.77635772,2936.0,2934.9,3.67966975]
[1769342565575,0.714,2936.1,2935.0,2.86193194]
[1769342566568,0.714,2936.1,2935.0,2.94354794]
[1769342566764,0.714,2936.1,2935.0,2.86193194]
[1769342567868,3.49035772,2936.1,2935.0,3.71371075]
[1769342568068,2.77635772,2936.0,2935.1,0.7120941]
[1769342568275,2.77635772,2936.0,2935.1,3.53995449]
[1769342568974,2.77635772,2936.0,2934.7,0.85186153]
[1769342569175,2.77635772,2936.0,2934.6,4.047933]
[1769342569546,2.77635772,2936.0,2934.6,0.36818227]
[1769342569749,2.77635772,2936.0,2934.5,0.85393361]
[1769342569950,2.77635772,2936.0,2934.5,0.002]
[1769342570172,2.77635772,2935.8,2934.5,0.002]
[1769342572078,8.38493,2935.6,2934.5,0.002]
[1769342572388,2.77635772,2935.5,2934.5,0.002]
[1769342572680,2.77635772,2935.3,2934.5,0.002]
[1769342574494,2.77635772,2935.3,2934.7,0.002]
[1769342575477,2.77735772,2935.6,2934.7,2.82986039]
[1769342580364,2.77735772,2935.6,2934.7,0.002]
[1769342582288,0.001,2935.6,2934.7,2.82986039]
[1769342582466,0.001,2935.6,2934.9,2.82786039]
[1769342582661,0.001,2935.6,2935.0,2.86193194]
[1769342583068,0.001,2935.6,2935.0,2.82786039]
[1769342583754,0.001,2935.6,2934.8,0.28639366]
[1769342583755,2.94452213,2935.6,2934.8,0.28639366]
[1769342583954,2.94452213,2935.6,2934.7,0.85387422]
[1769342584387,2.94452213,2935.6,2934.7,3.74586927]
[1769342585982,2.94452213,2935.6,2934.7,3.74586595]
[1769342587897,2.94452213,2935.6,2934.8,2.89199505]
[1769342588099,0.001,2935.6,2934.8,2.89199505]
[1769342588266,0.001,2935.6,2934.9,0.3779941]
[1769342588994,2.94452213,2935.6,2934.9,0.3779941]
[1769342589300,2.94452213,2935.6,2934.7,0.002]
[1769342597871,2.94452213,2935.6,2934.9,0.002]
[1769342604081,2.84246138,2935.4,2934.7,0.002]
[1769342604281,2.84246138,2935.4,2934.6,0.002]
[1769342604483,2.84246138,2935.2,2934.6,0.002]
[1769342606390,2.84246138,2935.4,2934.6,0.002]
[1769342606592,2.84246138,2935.4,2934.6,2.92667201]
[1769342606798,2.84246138,2935.4,2934.7,0.03407503]
[1769342607714,2.84246138,2935.4,2934.6,2.92667201]
[1769342607885,2.84246138,2935.4,2934.6,3.21953921]
[1769342608088,2.84246138,2935.4,2934.6,0.2948672]
[1769342608489,2.84246138,2935.4,2934.6,0.002]
[1769342609901,2.84246138,2935.4,2934.8,0.002]
[1769342612828,2.84246138,2935.3,2934.8,0.002]
[1769342613536,0.001,2935.6,2934.8,0.002]
[1769342613694,2.79155553,2935.5,2934.8,0.002]
[1769342613895,0.35065555,2935.4,2934.8,0.002]
[1769342614128,3.14221108,2935.4,2934.8,0.002]
[1769342620244,2.79155553,2934.9,2933.5,0.002]
[1769342620450,0.51802814,2934.8,2933.5,0.002]
[1769342620606,2.79155553,2934.6,2933.5,0.002]
[1769342620806,2.79155553,2934.4,2933.5,0.002]
[1769342622400,2.79155553,2934.2,2933.5,0.002]
[1769342625651,0.35055555,2934.5,2933.5,2.82191167]
[1769342625839,2.79155553,2934.7,2933.5,2.82191167]
[1769342627519,2.79155553,2934.7,2933.5,0.002]
[1769342627723,2.79155553,2934.5,2933.5,0.002]
[1769342630825,2.79155553,2934.3,2933.5,0.002]
[1769342632958,2.79155553,2934.3,2933.7,0.002]
[1769342633625,2.79155553,2934.1,2933.5,0.002]
[1769342635758,3.50555553,2934.1,2933.5,0.002]
[1769342635965,3.85611108,2934.1,2933.5,0.002]
[1769342636257,2.79155553,2934.0,2933.5,0.002]
[1769342642044,2.79155553,2934.0,2933.4,0.002]
[1769342642246,2.79155553,2934.0,2933.3,0.002]
[1769342642957,2.80846091,2933.9,2933.3,0.002]
[1769342643264,2.80846091,2933.7,2933.3,0.002]
[1769342643846,2.80846091,2933.7,2933.1,0.002]
[1769342644487,2.80846091,2933.7,2933.5,0.002]
[1769342644797,2.80846091,2933.7,2933.1,0.002]
[1769342645084,0.714,2933.6,2933.1,0.002]
[1769342645461,3.15901646,2934.1,2933.1,0.002]
[1769342645660,0.714,2933.6,2933.1,2.97612832]
[1769342645981,2.80846091,2934.1,2933.1,2.97612832]
[1769342646178,3.52246091,2934.1,2933.1,2.97612832]
[1769342646490,3.52246091,2934.1,2933.1,2.9420347]
[1769342646679,3.874707,2934.1,2933.1,3.23643817]
[1769342646856,2.80846091,2934.0,2933.1,3.23643817]
[1769342648884,2.80846091,2934.0,2933.1,0.29640347]
[1769342649265,2.80846091,2934.0,2933.1,0.002]
[1769342651984,2.80846091,2934.0,2933.1,2.94327292]
[1769342652282,3.52246091,2934.0,2933.1,2.94327292]
[1769342652976,2.80846091,2934.0,2933.2,0.03409245]
[1769342653162,2.80846091,2934.0,2933.1,2.94327292]
[1769342653363,2.80846091,2934.0,2933.2,0.29432729]
[1769342655493,2.92335603,2934.3,2933.3,2.92065913]
[1769342656595,2.92335603,2934.3,2933.3,2.92265913]
[1769342656973,0.001,2933.9,2933.3,2.92265913]
[1769342657281,0.001,2933.9,2933.4,0.32169864]
[1769342661101,0.001,2933.9,2933.3,0.002]
[1769342661792,0.001,2933.9,2933.3,2.92265913]
[1769342665794,3.63735603,2934.9,2933.4,2.92065913]
[1769342669026,3.63735603,2934.9,2933.5,0.002]
[1769342669212,2.92335603,2934.6,2933.5,2.92265913]
[1769342669412,2.92335603,2934.6,2933.6,0.29226591]
[1769342669814,2.92335603,2934.6,2933.6,4.06511172]
[1769342670182,2.92335603,2934.6,2933.7,2.95474577]
[1769342670387,0.001,2934.7,2933.7,2.92065913]
[1769342674113,0.001,2934.7,2933.7,0.85215382]
[1769342674318,0.001,2934.7,2933.8,3.25534716]
[1769342678229,0.001,2934.7,2933.9,2.79662181]
[1769342679524,0.001,2934.7,2934.0,2.79662181]
[1769342680425,0.001,2934.7,2934.1,0.034082]
[1769342680724,0.001,2934.7,2934.1,2.79662181]
[1769342681027,0.001,2934.5,2934.2,0.27966218]
[1769342682614,6.32,2935.1,2934.3,2.79662181]
[1769342683834,2.83542577,2935.2,2934.3,2.79662181]
[1769342684002,0.001,2935.2,2934.3,2.79662181]
[1769342684424,2.83542577,2935.2,2934.3,2.79662181]
[1769342684624,2.83542577,2935.2,2934.4,0.3076284]
[1769342685130,2.83542577,2935.2,2934.4,3.10425021]
[1769342685632,0.001,2935.2,2934.4,3.10425021]
[1769342687031,0.001,2935.2,2934.4,1.15958118]
[1769342687230,0.001,2935.2,2934.5,2.83069916]
[1769342687525,0.001,2935.2,2934.6,0.31383276]
[1769342688099,0.001,2935.2,2934.6,3.11045457]
[1769342689332,0.001,2935.2,2934.6,3.96234355]
[1769342689506,0.001,2935.2,2934.7,2.79662181]
[1769342692432,0.001,2935.0,2934.7,2.79662181]
[1769342692632,0.001,2935.0,2934.8,0.39623577]
[1769342696238,0.001,2935.6,2934.9,2.83069452]
[1769342696842,0.001,2935.6,2935.0,0.85178875]
[1769342697010,0.001,2935.6,2934.9,2.83069452]
[1769342697211,0.001,2935.6,2934.9,2.79662181]
[1769342697412,0.001,2935.6,2935.0,0.40787615]
[1769342698050,2.83542577,2935.6,2935.0,0.40787615]
[1769342698213,2.83542577,2935.6,2934.8,1.24806717]
[1769342698413,2.83542577,2935.6,2934.8,1.24808053]
[1769342701351,0.001,2935.6,2934.9,2.83069452]
[1769342701551,2.83442577,2936.2,2935.0,3.20449932]
[1769342702254,0.001,2936.5,2935.0,3.20449932]
[1769342702557,2.83442577,2937.3,2935.9,2.79662181]
[1769342702740,2.83442577,2937.3,2936.0,2.79662181]
[1769342703063,2.83442577,2937.3,2936.2,2.92311164]
[1769342703411,2.83442577,2937.3,2936.3,3.77452328]
[1769342704230,2.83442577,2937.3,2936.1,0.35106218]
[1769342704438,2.83442577,2937.3,2936.2,0.85143949]
[1769342704633,2.83442577,2937.3,2936.2,0.85143429]
[1769342704846,2.83442577,2937.3,2936.3,0.41256081]
[1769342705525,2.83442577,2937.3,2936.3,1.26396858]
[1769342705934,2.83442577,2937.3,2936.4,2.92311164]
[1769342707450,2.83442577,2937.3,2936.4,3.77447104]
[1769342707654,0.001,2937.4,2936.5,2.92311164]
[1769342707856,0.001,2937.4,2936.7,2.92311164]
[1769342709539,0.001,2937.4,2936.8,3.77437832]
[1769342709828,0.001,2937.4,2936.9,2.92311164]
[1769342710556,0.001,2937.6,2936.9,2.92311164]
[1769342711637,0.001,2937.6,2937.1,2.92311164]
[1769342711855,0.001,2937.6,2937.2,3.30054368]
[1769342712442,2.96896518,2937.6,2937.2,0.37743204]
[1769342712641,2.96896518,2937.6,2936.7,3.43922672]
[1769342712862,2.96896518,2937.6,2936.6,0.3774471]
[1769342713051,2.96896518,2937.6,2936.4,0.85138193]
[1769342713445,2.96896518,2937.6,2936.4,0.85136395]
[1769342713645,2.96896518,2937.6,2936.3,3.80856293]
[1769342715680,0.001,2937.4,2936.3,3.80856293]
[1769342715980,2.81917619,2937.3,2936.3,0.03405646]
[1769342716131,3.10119381,2937.3,2936.0,0.85148049]
[1769342716332,3.10119381,2937.3,2935.6,2.81342162]
[1769342716533,3.10119381,2937.3,2935.9,0.85150985]
[1769342716746,3.10119381,2937.3,2936.1,0.85146438]
[1769342716945,0.001,2937.4,2936.2,0.88548983]
[1769342716946,2.81917619,2937.1,2936.2,0.88548983]
[1769342717177,2.82017619,2937.4,2936.3,3.66482294]
[1769342717533,2.82017619,2937.4,2936.4,2.84747692]
[1769342718555,2.82017619,2937.4,2936.5,0.85135365]
[1769342718860,0.001,2937.4,2936.5,3.66477527]
[1769342719101,0.001,2937.4,2936.6,0.71043265]
[1769342719243,2.82017619,2937.4,2936.6,0.71043265]
[1769342720638,2.82017619,2937.4,2936.6,1.56174259]
[1769342720984,0.001,2937.4,2936.6,1.56174259]
[1769342721279,0.001,2937.4,2936.6,1.59579557]
[1769342721444,2.82017619,2937.4,2936.7,0.44092172]
[1769342721842,0.001,2937.4,2936.7,0.44092172]
[1769342722159,0.001,2937.4,2936.8,0.03405066]
[1769342722361,0.001,2937.4,2936.8,2.84747228]
[1769342722572,0.001,2937.4,2936.9,0.85123769]
[1769342722753,0.001,2937.4,2937.0,0.71037187]
[1769342723307,0.001,2937.6,2937.1,2.8474688]
[1769342723453,0.001,2937.6,2937.1,0.03404718]
[1769342723653,0.001,2937.6,2937.0,0.74442021]
[1769342724585,0.001,2937.6,2937.0,1.59562179]
[1769342724758,0.001,2937.6,2937.1,0.37484135]
[1769342725357,0.001,2937.6,2937.0,0.85120158]
[1769342725779,0.001,2937.6,2937.1,0.03404718]
[1769342726776,0.001,2937.6,2937.2,0.85115075]
[1769342727167,0.001,2937.6,2937.3,0.03404487]
[1769342727882,0.001,2937.6,2937.2,0.85315075]
[1769342728265,0.001,2937.4,2937.2,0.85315075]
[1769342728655,2.81917619,2938.6,2937.5,0.85106382]
[1769342728880,2.81917619,2938.6,2937.6,0.36644854]
[1769342729101,2.81917619,2938.6,2937.3,0.03404487]
[1769342729380,2.81917619,2938.6,2937.2,0.002]
[1769342731089,2.81917619,2938.6,2937.2,2.82323287]
[1769342731259,2.81917619,2938.6,2937.2,0.03604603]
[1769342733765,13.139686,2938.4,2937.2,0.002]
[1769342733962,0.8517374,2938.7,2937.2,0.002]
[1769342733963,2.71524536,2938.2,2937.2,0.002]
[1769342735200,2.71524536,2937.6,2935.9,0.85150325]
[1769342735408,2.71524536,2937.3,2935.8,0.002]
[1769342735562,2.71524536,2937.1,2935.8,0.002]
[1769342736975,2.71524536,2936.9,2935.8,0.002]
[1769342739696,2.71524536,2936.7,2935.8,0.002]
[1769342740068,2.71524536,2936.7,2936.0,0.002]
[1769342740269,2.71624536,2936.7,2936.0,0.002]
[1769342740889,2.71524536,2936.5,2936.0,0.002]
[1769342743128,0.001,2936.7,2936.0,0.002]
[1769342744744,0.001,2936.7,2936.0,2.84690909]
[1769342744897,0.001,2936.7,2936.0,0.03605994]
[1769342747627,0.001,2936.7,2936.0,0.002]
[1769342748923,0.001,2936.7,2936.1,0.36984235]
[1769342749122,2.71624536,2936.7,2936.0,0.002]
[1769342750125,0.001,2936.7,2936.0,2.84690909]
[1769342750501,0.001,2936.7,2936.1,0.85146963]
[1769342750697,0.001,2936.7,2936.1,3.66231878]
[1769342750898,2.71524536,2937.2,2936.2,2.84490677]
[1769342751098,2.71524536,2937.2,2936.3,3.18048679]
[1769342751324,2.71524536,2937.8,2936.3,3.18048679]
[1769342752204,0.001,2936.7,2936.3,3.18048679]
[1769342752730,0.001,2936.7,2936.4,3.69628709]
[1769342753930,0.001,2936.7,2936.5,2.81084915]
[1769342754137,0.001,2936.7,2936.6,0.36962871]
[1769342754822,2.71524536,2937.4,2936.6,0.36962871]
[1769342755315,2.71524536,2937.4,2936.4,0.88541603]
[1769342756309,2.71524536,2937.4,2936.5,0.85135177]
[1769342757147,2.71524536,2937.4,2936.4,0.88543141]
[1769342757528,2.71524536,2937.4,2936.3,0.36963764]
[1769342758339,2.71524536,2937.4,2936.2,0.85143365]
[1769342760828,2.71524536,2937.4,2936.3,2.81084915]
[1769342761425,2.71524536,2937.4,2936.4,0.85138264]
[1769342762047,2.71524536,2937.4,2936.4,3.66223179]
[1769342762352,2.71524536,2937.4,2936.4,2.81084915]
[1769342763632,2.71524536,2937.4,2936.5,0.3696296]
[1769342764140,0.001,2937.2,2936.5,0.3696296]
[1769342766157,0.001,2937.2,2936.5,4.12392698]
[1769342767164,0.001,2937.2,2936.5,4.12393515]
[1769342769063,0.001,2937.2,2936.6,2.90295387]
[1769342769235,0.001,2937.2,2936.7,3.31534739]
[1769342769846,0.001,2937.2,2936.7,4.16661942]
[1769342773871,0.001,2937.2,2936.8,2.90295387]
[1769342775372,0.001,2937.2,2936.7,1.26366555]
[1769342776066,0.001,2937.2,2936.7,1.26566555]
[1769342776270,0.001,2937.2,2936.8,1.58020482]
[1769342776467,0.001,2937.0,2936.8,1.58020482]
[1769342776667,2.88318652,2937.8,2936.9,2.7620044]
[1769342776868,2.88318652,2937.8,2936.8,1.58020482]
[1769342777075,2.88318652,2937.8,2936.9,0.3696296]
[1769342779786,2.88318652,2937.8,2936.9,1.22086312]
[1769342780881,2.88318652,2937.8,2936.9,3.98286752]
[1769342781084,2.88318652,2937.8,2936.9,4.01691702]
[1769342782778,2.88318652,2937.8,2936.9,1.25491262]
[1769342782972,2.88318652,2937.8,2937.0,3.30089696]
[1769342784871,2.88318652,2937.8,2937.1,0.85117973]
[1769342786059,2.88318652,2938.2,2937.1,0.85117973]
[1769342786983,2.88318652,2938.2,2937.1,3.61318413]
[1769342787363,2.88318652,2938.2,2937.2,2.7620044]
[1769342787564,2.88318652,2938.2,2937.3,0.36131841]
[1769342788780,2.88318652,2938.2,2937.3,3.12332281]
[1769342789298,0.001,2938.0,2937.3,3.12332281]
[1769342790161,0.001,2938.0,2937.3,3.97444197]
[1769342790368,0.001,2938.0,2937.3,3.12332281]
[1769342790696,0.001,2938.0,2937.4,0.39744568]
[1769342790889,2.88418652,2938.0,2937.3,0.36131841]
[1769342791793,0.001,2938.0,2937.3,3.97444343]
[1769342792575,0.001,2938.0,2937.4,2.7620044]
[1769342793193,0.001,2938.0,2937.5,0.85106382]
[1769342793383,0.001,2938.0,2937.6,0.70173368]
[1769342794424,0.001,2938.0,2937.6,3.64182035]
[1769342795238,0.001,2938.0,2937.7,0.85100588]
[1769342795440,0.001,2938.0,2937.6,4.49283424]
[1769342795801,0.001,2938.0,2937.6,3.64182035]
[1769342796009,3.00809039,2938.0,2937.3,0.36131841]
[1769342796238,3.00809039,2938.0,2937.2,0.85112246]